[Event "Early-Titled-Tuesday-Blitz-September-05-2023"]
[Site "Chess.com"]
[Date "2023.09.05"]
[Round "4"]
[White "frequentblunders"]
[Black "SilverCityIndigo"]
[Result "0-1"]
[WhiteElo "2084"]
[BlackElo "2305"]
[TimeControl "180+1"]
[EndTime "8:37:30 PDT"]
[Termination "SilverCityIndigo won by resignation"]

1. e4 {[%clk 0:02:59.3]} 1... e5 {[%clk 0:02:59.7]} 2. Nc3 {[%clk 0:03:00.2]}
2... Nc6 {[%clk 0:02:58.9]} 3. Nf3 {[%clk 0:03:00.9]} 3... Nf6 {[%clk
0:02:57.5]} 4. d4 {[%clk 0:03:00.7]} 4... exd4 {[%clk 0:02:57.4]} 5. Nd5 {[%clk
0:02:59]} 5... Nb4 {[%clk 0:02:54.4]} 6. Nxd4 {[%clk 0:02:54.8]} 6... Nbxd5
{[%clk 0:02:52.2]} 7. exd5 {[%clk 0:02:55.5]} 7... Nxd5 {[%clk 0:02:52.4]} 8.
Nf5 {[%clk 0:02:46.5]} 8... Nf6 {[%clk 0:02:47.9]} 9. Qe2+ {[%clk 0:02:40.9]}
9... Be7 {[%clk 0:02:33.3]} 10. Nxg7+ {[%clk 0:02:38.3]} 10... Kf8 {[%clk
0:02:32]} 11. Bh6 {[%clk 0:02:34.4]} 11... Kg8 {[%clk 0:02:31]} 12. Nf5 {[%clk
0:02:15.7]} 12... Bf8 {[%clk 0:02:29.1]} 13. O-O-O {[%clk 0:02:05.3]} 13...
Bxh6+ {[%clk 0:02:22.5]} 14. Nxh6+ {[%clk 0:02:05.6]} 14... Kf8 {[%clk
0:02:22.5]} 15. g4 {[%clk 0:01:59.4]} 15... d6 {[%clk 0:02:19.4]} 16. g5 {[%clk
0:01:55.1]} 16... Ng8 {[%clk 0:02:12.4]} 17. f4 {[%clk 0:01:31.5]} 17... Nxh6
{[%clk 0:02:10.4]} 18. gxh6 {[%clk 0:01:32.4]} 18... Qf6 {[%clk 0:02:06.7]} 19.
Bg2 {[%clk 0:01:13.8]} 19... Qxf4+ {[%clk 0:01:59.5]} 20. Kb1 {[%clk 0:01:13.7]}
20... Qxh6 {[%clk 0:01:59.2]} 21. Rdf1 {[%clk 0:00:56.9]} 21... Be6 {[%clk
0:01:57.4]} 22. Bxb7 {[%clk 0:00:31.9]} 22... Rb8 {[%clk 0:01:53.2]} 23. Be4
{[%clk 0:00:32.7]} 23... Ke7 {[%clk 0:01:41.9]} 24. Rf3 {[%clk 0:00:20.3]} 24...
Qg7 {[%clk 0:01:37.9]} 25. b3 {[%clk 0:00:17.8]} 25... Rb4 {[%clk 0:01:36.9]}
26. Rhf1 {[%clk 0:00:13.6]} 26... Rf8 {[%clk 0:01:29.3]} 27. Qd3 {[%clk
0:00:10.5]} 27... a5 {[%clk 0:01:25.2]} 28. Bxh7 {[%clk 0:00:10.3]} 28... a4
{[%clk 0:01:21.8]} 29. Bf5 {[%clk 0:00:09.4]} 29... axb3 {[%clk 0:01:19.5]} 30.
axb3 {[%clk 0:00:07.7]} 30... Ra8 {[%clk 0:01:18.8]} 31. Qc3 {[%clk 0:00:01.8]}
31... Qxc3 {[%clk 0:01:13.4]} 32. Rxc3 {[%clk 0:00:02.6]} 32... c5 {[%clk
0:01:04.2]} 33. Bxe6 {[%clk 0:00:03.3]} 33... fxe6 {[%clk 0:01:05.1]} 34. h4
{[%clk 0:00:03.5]} 34... Rh8 {[%clk 0:01:05.1]} 35. Rcf3 {[%clk 0:00:03]} 35...
Rh7 {[%clk 0:01:04.2]} 36. Rh1 {[%clk 0:00:02.7]} 36... Rbxh4 {[%clk 0:01:04]}
37. Rxh4 {[%clk 0:00:03]} 37... Rxh4 {[%clk 0:01:04.9]} 38. Re3 {[%clk
0:00:03.4]} 38... Kf6 {[%clk 0:01:04]} 39. Kb2 {[%clk 0:00:04.1]} 39... Rh2
{[%clk 0:01:03.8]} 40. Rf3+ {[%clk 0:00:04.2]} 40... Ke5 {[%clk 0:01:03.9]} 41.
Rg3 {[%clk 0:00:04.2]} 41... d5 {[%clk 0:01:03.3]} 42. Rg5+ {[%clk 0:00:04.3]}
42... Kd6 {[%clk 0:01:03.7]} 43. Rg7 {[%clk 0:00:04.8]} 43... d4 {[%clk
0:01:01.4]} 44. Rg5 {[%clk 0:00:04.1]} 44... d3 {[%clk 0:00:59.9]} 0-1

[Event "Early-Titled-Tuesday-Blitz-September-05-2023"]
[Site "Chess.com"]
[Date "2023.09.05"]
[Round "4"]
[White "Fleetw00dMac"]
[Black "Boxerandchessplayer"]
[Result "1-0"]
[WhiteElo "2466"]
[BlackElo "2078"]
[TimeControl "180+1"]
[EndTime "8:37:32 PDT"]
[Termination "Fleetw00dMac won by resignation"]

1. d4 {[%clk 0:03:00.9]} 1... d5 {[%clk 0:02:59.2]} 2. c4 {[%clk 0:03:00.5]}
2... e6 {[%clk 0:02:59.3]} 3. Nc3 {[%clk 0:03:00]} 3... h6 {[%clk 0:02:54.7]} 4.
e4 {[%clk 0:02:46.8]} 4... dxe4 {[%clk 0:02:53.6]} 5. Nxe4 {[%clk 0:02:46.1]}
5... Bb4+ {[%clk 0:02:54.2]} 6. Nc3 {[%clk 0:02:45.8]} 6... Nf6 {[%clk
0:02:52.6]} 7. Nf3 {[%clk 0:02:44.4]} 7... O-O {[%clk 0:02:39.3]} 8. Bd3 {[%clk
0:02:41.8]} 8... c5 {[%clk 0:01:58.3]} 9. O-O {[%clk 0:02:39.7]} 9... Nc6 {[%clk
0:01:54.4]} 10. dxc5 {[%clk 0:02:34.5]} 10... Bxc5 {[%clk 0:01:53.2]} 11. a3
{[%clk 0:02:25]} 11... a5 {[%clk 0:01:50.8]} 12. h3 {[%clk 0:02:19.4]} 12... b6
{[%clk 0:01:41.9]} 13. Na4 {[%clk 0:02:06.4]} 13... Ba6 {[%clk 0:01:31.3]} 14.
Nxc5 {[%clk 0:01:52.3]} 14... bxc5 {[%clk 0:01:32.2]} 15. Be3 {[%clk 0:01:45]}
15... Qb6 {[%clk 0:01:28.1]} 16. Rb1 {[%clk 0:01:19.4]} 16... Rfd8 {[%clk
0:01:24.8]} 17. Qc2 {[%clk 0:01:09.4]} 17... Rac8 {[%clk 0:01:22.7]} 18. Rfc1
{[%clk 0:01:04]} 18... e5 {[%clk 0:01:03.4]} 19. Bf1 {[%clk 0:00:46.5]} 19...
Nd4 {[%clk 0:00:58.4]} 20. Bxd4 {[%clk 0:00:44.8]} 20... exd4 {[%clk 0:00:56.9]}
21. Bd3 {[%clk 0:00:33.6]} 21... Bb7 {[%clk 0:00:53.8]} 22. Ne5 {[%clk
0:00:31.5]} 22... Re8 {[%clk 0:00:48.8]} 23. Re1 {[%clk 0:00:31]} 23... Qd6
{[%clk 0:00:47.2]} 24. f4 {[%clk 0:00:24.3]} 24... Nd7 {[%clk 0:00:41.3]} 25.
Bh7+ {[%clk 0:00:17]} 25... Kf8 {[%clk 0:00:40.7]} 26. Bf5 {[%clk 0:00:16.9]}
26... Bc6 {[%clk 0:00:32]} 27. Bxd7 {[%clk 0:00:15.3]} 27... Bxd7 {[%clk
0:00:29.3]} 28. Qh7 {[%clk 0:00:15.2]} 28... Re6 {[%clk 0:00:22.1]} 29. Qh8+
{[%clk 0:00:12.7]} 29... Ke7 {[%clk 0:00:22.6]} 30. Qxg7 {[%clk 0:00:13]} 30...
Kd8 {[%clk 0:00:15.5]} 31. Nxf7+ {[%clk 0:00:11.9]} 1-0

[Event "Early-Titled-Tuesday-Blitz-September-05-2023"]
[Site "Chess.com"]
[Date "2023.09.05"]
[Round "4"]
[White "IngOscarArdila"]
[Black "Aureliano-Buendia"]
[Result "1-0"]
[WhiteElo "2410"]
[BlackElo "2642"]
[TimeControl "180+1"]
[EndTime "8:37:33 PDT"]
[Termination "IngOscarArdila won by resignation"]

1. d4 {[%clk 0:02:59.7]} 1... Nf6 {[%clk 0:02:59.4]} 2. c4 {[%clk 0:02:58.7]}
2... e6 {[%clk 0:02:59.8]} 3. Nc3 {[%clk 0:02:58.7]} 3... Bb4 {[%clk 0:02:58.9]}
4. Bd2 {[%clk 0:02:59]} 4... b6 {[%clk 0:02:55.4]} 5. Nf3 {[%clk 0:02:59.2]}
5... Bb7 {[%clk 0:02:55.1]} 6. e3 {[%clk 0:02:59.5]} 6... c5 {[%clk 0:02:52.4]}
7. Be2 {[%clk 0:02:59.5]} 7... O-O {[%clk 0:02:50.4]} 8. O-O {[%clk 0:02:59.1]}
8... cxd4 {[%clk 0:02:48]} 9. Nxd4 {[%clk 0:02:58.2]} 9... a6 {[%clk 0:02:47.1]}
10. Bf3 {[%clk 0:02:58]} 10... Qc7 {[%clk 0:02:40.6]} 11. Ncb5 {[%clk
0:02:38.8]} 11... axb5 {[%clk 0:02:35.4]} 12. Bxb4 {[%clk 0:02:37.2]} 12... d6
{[%clk 0:02:11]} 13. Nxb5 {[%clk 0:02:35.5]} 13... Bxf3 {[%clk 0:02:09.4]} 14.
Qxf3 {[%clk 0:02:29.3]} 14... Qxc4 {[%clk 0:01:47.2]} 15. Qxa8 {[%clk
0:02:28.6]} 15... Qxb5 {[%clk 0:01:30.1]} 16. Bxd6 {[%clk 0:02:19.6]} 16... Re8
{[%clk 0:01:17.1]} 17. Bxb8 {[%clk 0:02:17]} 17... Nd7 {[%clk 0:01:16]} 18. Qe4
{[%clk 0:01:52.2]} 18... Rxb8 {[%clk 0:01:12.3]} 19. Qd4 {[%clk 0:01:50.7]}
19... Nf6 {[%clk 0:01:10.7]} 20. a4 {[%clk 0:01:47.3]} 20... Qb3 {[%clk
0:01:04.9]} 21. Ra3 {[%clk 0:01:45.4]} 21... Qc2 {[%clk 0:01:05.1]} 22. Rc3
{[%clk 0:01:42.3]} 22... Qe2 {[%clk 0:01:05]} 23. Rc7 {[%clk 0:01:30.8]} 23...
h6 {[%clk 0:00:59.7]} 24. h3 {[%clk 0:01:27]} 24... Nd5 {[%clk 0:00:54.6]} 25.
Ra7 {[%clk 0:01:17.3]} 25... Rc8 {[%clk 0:00:53.1]} 26. e4 {[%clk 0:01:07.5]}
26... Rc4 {[%clk 0:00:50.9]} 27. Qd1 {[%clk 0:01:07.6]} 27... Qxe4 {[%clk
0:00:47.9]} 28. Re1 {[%clk 0:01:07.2]} 28... Qg6 {[%clk 0:00:44.9]} 29. b3
{[%clk 0:00:59.7]} 29... Rc3 {[%clk 0:00:40.7]} 30. b4 {[%clk 0:00:45.5]} 30...
Nf4 {[%clk 0:00:37.2]} 31. Qg4 {[%clk 0:00:39.3]} 31... Qf6 {[%clk 0:00:27.4]}
32. Ra8+ {[%clk 0:00:32.5]} 32... Kh7 {[%clk 0:00:27.1]} 33. a5 {[%clk
0:00:31.6]} 33... bxa5 {[%clk 0:00:24.3]} 34. bxa5 {[%clk 0:00:30.9]} 34... Rc2
{[%clk 0:00:23.2]} 35. Qf3 {[%clk 0:00:17.9]} 35... g5 {[%clk 0:00:17.7]} 36.
Qe4+ {[%clk 0:00:17.5]} 36... Kg7 {[%clk 0:00:17.1]} 37. Qxc2 {[%clk 0:00:16.3]}
1-0

[Event "Early-Titled-Tuesday-Blitz-September-05-2023"]
[Site "Chess.com"]
[Date "2023.09.05"]
[Round "4"]
[White "LileKoridze"]
[Black "Witty_Alien"]
[Result "1-0"]
[WhiteElo "2362"]
[BlackElo "2188"]
[TimeControl "180+1"]
[EndTime "8:37:39 PDT"]
[Termination "LileKoridze won on time"]

1. d4 {[%clk 0:03:00.9]} 1... e5 {[%clk 0:02:56.7]} 2. dxe5 {[%clk 0:02:57.4]}
2... d6 {[%clk 0:02:53.8]} 3. exd6 {[%clk 0:02:53.4]} 3... Bxd6 {[%clk
0:02:54.7]} 4. c3 {[%clk 0:02:51.4]} 4... Nf6 {[%clk 0:02:52.6]} 5. Nf3 {[%clk
0:02:48.2]} 5... Nc6 {[%clk 0:02:48.1]} 6. e3 {[%clk 0:02:47.1]} 6... Bg4 {[%clk
0:02:47.3]} 7. Be2 {[%clk 0:02:47]} 7... Qd7 {[%clk 0:02:46.8]} 8. h3 {[%clk
0:02:46.1]} 8... Bf5 {[%clk 0:02:47.2]} 9. Nd4 {[%clk 0:02:41.1]} 9... Nxd4
{[%clk 0:02:43.4]} 10. exd4 {[%clk 0:02:41]} 10... O-O-O {[%clk 0:02:43.4]} 11.
O-O {[%clk 0:02:40.2]} 11... Bxh3 {[%clk 0:02:42.9]} 12. gxh3 {[%clk 0:02:39.8]}
12... Qxh3 {[%clk 0:02:42.6]} 13. f4 {[%clk 0:02:34.3]} 13... Qg3+ {[%clk
0:02:36.5]} 14. Kh1 {[%clk 0:02:33.8]} 14... h5 {[%clk 0:01:48.3]} 15. Rf3
{[%clk 0:01:54]} 15... Qh4+ {[%clk 0:01:46.7]} 16. Kg2 {[%clk 0:01:51.5]} 16...
Ng4 {[%clk 0:01:47.3]} 17. Qh1 {[%clk 0:01:39.2]} 17... Qe7 {[%clk 0:01:47.2]}
18. Bd3 {[%clk 0:01:28.6]} 18... Kb8 {[%clk 0:01:34.6]} 19. Bd2 {[%clk
0:01:11.3]} 19... g5 {[%clk 0:01:27.8]} 20. fxg5 {[%clk 0:00:57.4]} 20... h4
{[%clk 0:01:26.7]} 21. Qe1 {[%clk 0:00:51]} 21... h3+ {[%clk 0:01:22]} 22. Kh1
{[%clk 0:00:50.9]} 22... Qf8 {[%clk 0:00:14.2]} 23. Qg1 {[%clk 0:00:31]} 23...
Nh2 {[%clk 0:00:07.4]} 24. Rf2 {[%clk 0:00:29.7]} 24... Qe8 {[%clk 0:00:04.3]}
25. d5 {[%clk 0:00:19.9]} 25... Qe5 {[%clk 0:00:04]} 26. Qe1 {[%clk 0:00:14.8]}
26... Qxd5+ {[%clk 0:00:03.4]} 27. Be4 {[%clk 0:00:15.4]} 27... Qe5 {[%clk
0:00:02.7]} 28. Bf4 {[%clk 0:00:14.4]} 28... Qxf4 {[%clk 0:00:02.2]} 29. Rxf4
{[%clk 0:00:14.6]} 29... Bxf4 {[%clk 0:00:03]} 30. Na3 {[%clk 0:00:15]} 30...
Rd2 {[%clk 0:00:03]} 31. Nc4 {[%clk 0:00:14.1]} 31... Rhd8 {[%clk 0:00:01.1]}
32. Nxd2 {[%clk 0:00:13.9]} 32... Rxd2 {[%clk 0:00:01.4]} 33. Rd1 {[%clk
0:00:14.6]} 33... Ng4 {[%clk 0:00:01.3]} 34. Rxd2 {[%clk 0:00:14.1]} 34... Bxd2
{[%clk 0:00:01.6]} 35. Qxd2 {[%clk 0:00:14.7]} 1-0

[Event "Early-Titled-Tuesday-Blitz-September-05-2023"]
[Site "Chess.com"]
[Date "2023.09.05"]
[Round "4"]
[White "PeshkaCh"]
[Black "Beca95"]
[Result "0-1"]
[WhiteElo "2791"]
[BlackElo "2987"]
[TimeControl "180+1"]
[EndTime "8:37:41 PDT"]
[Termination "Beca95 won on time"]

1. Nf3 {[%clk 0:03:00.9]} 1... Nf6 {[%clk 0:02:57.7]} 2. c4 {[%clk 0:02:56.4]}
2... e6 {[%clk 0:02:57.9]} 3. g3 {[%clk 0:02:55.7]} 3... a6 {[%clk 0:02:58.2]}
4. Bg2 {[%clk 0:02:55.5]} 4... b5 {[%clk 0:02:58.5]} 5. cxb5 {[%clk 0:02:55.8]}
5... axb5 {[%clk 0:02:58.4]} 6. O-O {[%clk 0:02:56.5]} 6... Bb7 {[%clk 0:02:58]}
7. d4 {[%clk 0:02:57.1]} 7... h6 {[%clk 0:02:42.8]} 8. a3 {[%clk 0:02:51.2]}
8... Be7 {[%clk 0:02:20]} 9. Bf4 {[%clk 0:02:50.4]} 9... O-O {[%clk 0:02:14.2]}
10. Nc3 {[%clk 0:02:50.6]} 10... c6 {[%clk 0:02:00]} 11. Nd2 {[%clk 0:02:41.5]}
11... d5 {[%clk 0:01:53.7]} 12. e4 {[%clk 0:02:32.9]} 12... Nbd7 {[%clk
0:01:51]} 13. Re1 {[%clk 0:02:30.1]} 13... Nb6 {[%clk 0:01:50.1]} 14. Rc1 {[%clk
0:02:29]} 14... Nc4 {[%clk 0:01:48]} 15. Nxc4 {[%clk 0:02:28.7]} 15... bxc4
{[%clk 0:01:48.2]} 16. Qc2 {[%clk 0:02:22.5]} 16... Qb6 {[%clk 0:01:46.6]} 17.
Rcd1 {[%clk 0:02:05.5]} 17... Rfe8 {[%clk 0:01:44]} 18. Qd2 {[%clk 0:02:03.3]}
18... Bf8 {[%clk 0:01:42.7]} 19. e5 {[%clk 0:01:48.3]} 19... Nd7 {[%clk
0:01:39.9]} 20. g4 {[%clk 0:01:48.5]} 20... c5 {[%clk 0:01:39]} 21. Ne2 {[%clk
0:01:36.7]} 21... cxd4 {[%clk 0:01:33.5]} 22. Nxd4 {[%clk 0:01:37.6]} 22... Nc5
{[%clk 0:01:33.4]} 23. Be3 {[%clk 0:00:54]} 23... Nd3 {[%clk 0:01:28.1]} 24. Re2
{[%clk 0:00:54.5]} 24... Nxe5 {[%clk 0:01:09.9]} 25. g5 {[%clk 0:00:35.9]} 25...
hxg5 {[%clk 0:01:07.7]} 26. Nf3 {[%clk 0:00:27.2]} 26... Nxf3+ {[%clk
0:01:07.4]} 27. Bxf3 {[%clk 0:00:28.1]} 27... Qa5 {[%clk 0:01:06.8]} 28. Qc2
{[%clk 0:00:23.3]} 28... Bc6 {[%clk 0:01:03.1]} 29. Bxg5 {[%clk 0:00:22.7]}
29... Ba4 {[%clk 0:01:02.8]} 30. Qc1 {[%clk 0:00:19]} 30... Bxd1 {[%clk
0:01:03]} 31. Qxd1 {[%clk 0:00:19.9]} 31... Be7 {[%clk 0:00:55.5]} 32. Bd2
{[%clk 0:00:12.9]} 32... Qa4 {[%clk 0:00:55.1]} 33. Qe1 {[%clk 0:00:09.4]} 33...
Bf6 {[%clk 0:00:55.2]} 34. h4 {[%clk 0:00:09.5]} 34... Bxb2 {[%clk 0:00:38.4]}
35. h5 {[%clk 0:00:08.6]} 35... Bf6 {[%clk 0:00:38.3]} 36. h6 {[%clk 0:00:08.9]}
36... g6 {[%clk 0:00:38.6]} 37. Bg4 {[%clk 0:00:08.9]} 37... c3 {[%clk
0:00:35.6]} 38. Bxe6 {[%clk 0:00:03.8]} 38... Rxe6 {[%clk 0:00:35]} 39. Rxe6
{[%clk 0:00:03.8]} 39... Qg4+ {[%clk 0:00:35.3]} 40. Kh1 {[%clk 0:00:01.8]}
40... Qxe6 {[%clk 0:00:35.7]} 41. h7+ {[%clk 0:00:01.4]} 41... Kxh7 {[%clk
0:00:34.9]} 42. Bxc3 {[%clk 0:00:01.1]} 42... Qxe1+ {[%clk 0:00:33.5]} 43. Bxe1
{[%clk 0:00:01.4]} 43... Rxa3 {[%clk 0:00:33.4]} 0-1

[Event "Early-Titled-Tuesday-Blitz-September-05-2023"]
[Site "Chess.com"]
[Date "2023.09.05"]
[Round "4"]
[White "H_E_D_G_E_H_O_G"]
[Black "Ncatt"]
[Result "1/2-1/2"]
[WhiteElo "2062"]
[BlackElo "2449"]
[TimeControl "180+1"]
[EndTime "8:37:41 PDT"]
[Termination "Game drawn by repetition"]

1. d4 {[%clk 0:02:57.9]} 1... Nf6 {[%clk 0:02:59.7]} 2. Nf3 {[%clk 0:02:57.1]}
2... d5 {[%clk 0:02:59.8]} 3. Bf4 {[%clk 0:02:57.4]} 3... c5 {[%clk 0:02:59.7]}
4. e3 {[%clk 0:02:57.6]} 4... Nc6 {[%clk 0:03:00.1]} 5. Nbd2 {[%clk 0:02:58.2]}
5... Bf5 {[%clk 0:02:57.6]} 6. dxc5 {[%clk 0:02:54.4]} 6... e6 {[%clk
0:02:56.7]} 7. Nd4 {[%clk 0:02:53.8]} 7... Bxc5 {[%clk 0:02:52]} 8. Nxf5 {[%clk
0:02:53.8]} 8... exf5 {[%clk 0:02:52.9]} 9. c3 {[%clk 0:02:53]} 9... O-O {[%clk
0:02:52.9]} 10. Be2 {[%clk 0:02:51.9]} 10... Re8 {[%clk 0:02:52.7]} 11. Bg5
{[%clk 0:02:49.7]} 11... h6 {[%clk 0:02:52.1]} 12. Bxf6 {[%clk 0:02:49.1]} 12...
Qxf6 {[%clk 0:02:53]} 13. g3 {[%clk 0:02:46.6]} 13... Rad8 {[%clk 0:02:50.4]}
14. Nb3 {[%clk 0:02:38.3]} 14... Bb6 {[%clk 0:02:49.1]} 15. Nd4 {[%clk
0:02:35.4]} 15... Ne5 {[%clk 0:02:41.2]} 16. a4 {[%clk 0:02:32.1]} 16... Qg5
{[%clk 0:02:35.5]} 17. f4 {[%clk 0:02:25.4]} 17... Qf6 {[%clk 0:02:27.1]} 18.
fxe5 {[%clk 0:02:24.6]} 18... Qxe5 {[%clk 0:02:27.8]} 19. Qd3 {[%clk 0:02:15.8]}
19... Qxe3 {[%clk 0:02:23.5]} 20. Qxe3 {[%clk 0:02:15.5]} 20... Rxe3 {[%clk
0:02:23.7]} 21. Kd2 {[%clk 0:02:11.9]} 21... Rde8 {[%clk 0:02:23.5]} 22. Bd3
{[%clk 0:02:09.2]} 22... g6 {[%clk 0:02:21.9]} 23. Rhe1 {[%clk 0:02:02.1]} 23...
Rxe1 {[%clk 0:02:19]} 24. Rxe1 {[%clk 0:02:00.8]} 24... Rxe1 {[%clk 0:02:16.1]}
25. Kxe1 {[%clk 0:02:01.7]} 25... Kg7 {[%clk 0:02:15.2]} 26. b4 {[%clk 0:01:55]}
26... h5 {[%clk 0:02:12.7]} 27. a5 {[%clk 0:01:54.6]} 27... Bc7 {[%clk
0:02:12.9]} 28. Nf3 {[%clk 0:01:40.2]} 28... Kf6 {[%clk 0:02:11.4]} 29. Kf2
{[%clk 0:01:38.3]} 29... g5 {[%clk 0:02:07.9]} 30. h4 {[%clk 0:01:37.9]} 30...
g4 {[%clk 0:02:03.9]} 31. Nd4 {[%clk 0:01:33.7]} 31... f4 {[%clk 0:02:04.8]} 32.
gxf4 {[%clk 0:01:10.2]} 32... Bxf4 {[%clk 0:02:05.7]} 33. b5 {[%clk 0:01:00.2]}
33... Bd2 {[%clk 0:02:02.8]} 34. Ne2 {[%clk 0:00:54.9]} 34... b6 {[%clk
0:02:02.6]} 35. a6 {[%clk 0:00:47.2]} 35... Ke5 {[%clk 0:02:02.6]} 36. Bh7
{[%clk 0:00:41.3]} 36... f5 {[%clk 0:01:40.5]} 37. Bg6 {[%clk 0:00:40.7]} 37...
f4 {[%clk 0:01:40.4]} 38. Bxh5 {[%clk 0:00:41]} 38... f3 {[%clk 0:01:40.6]} 39.
Bxg4 {[%clk 0:00:35.5]} 39... fxe2 {[%clk 0:01:40.1]} 40. Kxe2 {[%clk
0:00:35.4]} 40... Bxc3 {[%clk 0:01:39.9]} 41. Kd3 {[%clk 0:00:35.5]} 41... Ba1
{[%clk 0:01:37.6]} 42. h5 {[%clk 0:00:35.2]} 42... Kd6 {[%clk 0:01:37.4]} 43. h6
{[%clk 0:00:32.7]} 43... Be5 {[%clk 0:01:35.3]} 44. h7 {[%clk 0:00:32.1]} 44...
Ke7 {[%clk 0:01:35.1]} 45. Bf3 {[%clk 0:00:26.6]} 45... Kd6 {[%clk 0:01:34.5]}
46. Be2 {[%clk 0:00:23.6]} 46... Ke7 {[%clk 0:01:34.4]} 47. Ke3 {[%clk
0:00:23.1]} 47... Kf6 {[%clk 0:01:33.7]} 48. Kf3 {[%clk 0:00:22.5]} 48... Kg6
{[%clk 0:01:32.3]} 49. Bd3+ {[%clk 0:00:22.3]} 49... Kf7 {[%clk 0:01:31.4]} 50.
Kg4 {[%clk 0:00:22.4]} 50... Bd4 {[%clk 0:01:30.7]} 51. Kf5 {[%clk 0:00:21.8]}
51... Ke7 {[%clk 0:01:30.2]} 52. Kg6 {[%clk 0:00:21.7]} 52... Kf8 {[%clk
0:01:29.2]} 53. Kf5 {[%clk 0:00:19]} 53... Ke7 {[%clk 0:01:29.5]} 54. Bc2 {[%clk
0:00:16]} 54... Ba1 {[%clk 0:01:29.6]} 55. Kg6 {[%clk 0:00:15.8]} 55... Kf8
{[%clk 0:01:29.3]} 56. Bb3 {[%clk 0:00:15.1]} 56... Ke7 {[%clk 0:01:28.7]} 57.
Bxd5 {[%clk 0:00:14.9]} 57... Kf8 {[%clk 0:01:29.2]} 58. Kf5 {[%clk 0:00:14]}
58... Ke7 {[%clk 0:01:29.4]} 59. Ke4 {[%clk 0:00:13.6]} 59... Kd6 {[%clk
0:01:29.7]} 60. Bc4 {[%clk 0:00:13.1]} 60... Bb2 {[%clk 0:01:30.1]} 61. Kf5
{[%clk 0:00:11.7]} 61... Ke7 {[%clk 0:01:30.6]} 62. Kg6 {[%clk 0:00:11.9]} 62...
Kf8 {[%clk 0:01:31.1]} 63. Bd5 {[%clk 0:00:12.5]} 63... Ba1 {[%clk 0:01:30.6]}
64. Be4 {[%clk 0:00:12.6]} 64... Bb2 {[%clk 0:01:30.6]} 65. Bf3 {[%clk
0:00:12.2]} 65... Ba1 {[%clk 0:01:30.9]} 66. Be2 {[%clk 0:00:12.3]} 66... Bb2
{[%clk 0:01:31.3]} 67. Bd1 {[%clk 0:00:13.2]} 67... Ba1 {[%clk 0:01:31.7]} 68.
Bc2 {[%clk 0:00:14.1]} 68... Bb2 {[%clk 0:01:32]} 69. Bb3 {[%clk 0:00:15]} 69...
Ba1 {[%clk 0:01:32.1]} 70. Bc4 {[%clk 0:00:15.9]} 70... Bb2 {[%clk 0:01:32.3]}
71. Bd5 {[%clk 0:00:16.8]} 71... Ba1 {[%clk 0:01:32.5]} 1/2-1/2

[Event "Early-Titled-Tuesday-Blitz-September-05-2023"]
[Site "Chess.com"]
[Date "2023.09.05"]
[Round "4"]
[White "the-gambler"]
[Black "Casper"]
[Result "0-1"]
[WhiteElo "2511"]
[BlackElo "2423"]
[TimeControl "180+1"]
[EndTime "8:37:43 PDT"]
[Termination "Casper won on time"]

1. Nf3 {[%clk 0:03:00.9]} 1... Nf6 {[%clk 0:02:57.4]} 2. b3 {[%clk 0:03:00.3]}
2... b6 {[%clk 0:02:56.5]} 3. Bb2 {[%clk 0:03:00.4]} 3... Bb7 {[%clk 0:02:57.4]}
4. e3 {[%clk 0:03:00.5]} 4... e6 {[%clk 0:02:57.9]} 5. c4 {[%clk 0:03:00.1]}
5... Be7 {[%clk 0:02:58.3]} 6. Nc3 {[%clk 0:02:59.4]} 6... O-O {[%clk
0:02:58.9]} 7. Qc2 {[%clk 0:02:58.4]} 7... d5 {[%clk 0:02:58.9]} 8. Be2 {[%clk
0:02:57.5]} 8... Nc6 {[%clk 0:02:56.8]} 9. cxd5 {[%clk 0:02:56.5]} 9... Nb4
{[%clk 0:02:54.9]} 10. Qb1 {[%clk 0:02:55.9]} 10... Nbxd5 {[%clk 0:02:49.2]} 11.
O-O {[%clk 0:02:54.3]} 11... Nxc3 {[%clk 0:02:43.6]} 12. Bxc3 {[%clk 0:02:53.3]}
12... Qd5 {[%clk 0:02:44.4]} 13. d3 {[%clk 0:02:50.7]} 13... Bd6 {[%clk
0:02:36.6]} 14. e4 {[%clk 0:02:43.7]} 14... Qc6 {[%clk 0:02:29]} 15. Rc1 {[%clk
0:02:30.4]} 15... Ba3 {[%clk 0:02:20.8]} 16. Bb2 {[%clk 0:02:26.5]} 16... Bc5
{[%clk 0:02:14]} 17. b4 {[%clk 0:02:09.8]} 17... Bxf2+ {[%clk 0:02:13.5]} 18.
Kxf2 {[%clk 0:02:09.1]} 18... Ng4+ {[%clk 0:02:14.4]} 19. Kg3 {[%clk 0:01:48.6]}
19... Qd6+ {[%clk 0:02:12.9]} 20. e5 {[%clk 0:01:37.4]} 20... Qd5 {[%clk
0:01:44.4]} 21. Kxg4 {[%clk 0:01:34.8]} 21... f6 {[%clk 0:01:23.7]} 22. exf6
{[%clk 0:00:40.6]} 22... gxf6 {[%clk 0:00:47.8]} 23. Kg3 {[%clk 0:00:38.8]}
23... Rf7 {[%clk 0:00:18.5]} 24. Kf2 {[%clk 0:00:37.3]} 24... a5 {[%clk
0:00:16.9]} 25. a3 {[%clk 0:00:34.3]} 25... Rg7 {[%clk 0:00:11.9]} 26. Qc2
{[%clk 0:00:23.2]} 26... Qh5 {[%clk 0:00:05.4]} 27. Qc4 {[%clk 0:00:12.1]} 27...
Bd5 {[%clk 0:00:04.6]} 28. Qf4 {[%clk 0:00:08.1]} 28... e5 {[%clk 0:00:03.7]}
29. Qe3 {[%clk 0:00:03.6]} 29... Kf7 {[%clk 0:00:01.3]} 30. Rxc7+ {[%clk
0:00:02.3]} 30... Kg8 {[%clk 0:00:01.9]} 31. Rxg7+ {[%clk 0:00:02.5]} 31... Kxg7
{[%clk 0:00:02.8]} 0-1